bitfinex-derivatives/quotes_ETHF0:USTF0_20260117
["timestamp","ask_amount","ask_price","bid_price","bid_amount"]
[1768637375584,0.912688,3296.0,3294.9,0.14338667]
[1768637375784,0.912688,3295.9,3294.9,0.14338667]
[1768637375984,0.00255419,3296.1,3294.9,0.14338667]
[1768637376284,0.91268798,3296.0,3294.9,0.14338667]
[1768637376484,0.91268798,3295.9,3294.9,0.14338667]
[1768637376690,0.00255419,3296.1,3294.9,0.14338667]
[1768637376892,0.91268983,3296.0,3294.9,0.14338667]
[1768637377095,0.91268983,3295.9,3294.9,0.14338667]
[1768637377288,0.00255419,3296.1,3294.9,0.14338667]
[1768637377489,0.91269182,3296.0,3294.9,0.14338667]
[1768637377692,0.91269182,3295.9,3294.9,0.14338667]
[1768637377992,0.00255419,3296.1,3294.9,0.14338667]
[1768637378190,0.91269181,3296.0,3294.9,0.14338667]
[1768637378393,0.91269181,3295.9,3294.9,0.14338667]
[1768637378591,0.00255419,3296.1,3294.9,0.14338667]
[1768637378792,0.91269482,3296.0,3294.9,0.14338667]
[1768637378992,0.91269482,3295.9,3294.9,0.14338667]
[1768637379192,0.00255419,3296.1,3294.9,0.14338667]
[1768637379396,0.91269924,3296.0,3294.9,0.14338667]
[1768637379596,0.91269924,3295.9,3294.9,0.14338667]
[1768637379799,0.00255419,3296.1,3294.9,0.14338667]
[1768637379993,0.91269922,3296.0,3294.9,0.14338667]
[1768637380192,0.91269922,3295.9,3294.9,0.14338667]
[1768637380394,0.00255419,3296.1,3294.9,0.14338667]
[1768637380595,0.9126991,3296.0,3294.9,0.14338667]
[1768637380896,0.9126991,3295.9,3294.9,0.14338667]
[1768637381097,0.00255419,3296.1,3294.9,0.14338667]
[1768637381304,0.9126991,3296.0,3294.9,0.14338667]
[1768637381595,0.9126991,3295.9,3294.9,0.14338667]
[1768637381796,0.00255419,3296.1,3294.9,0.14338667]
[1768637381997,0.91269957,3296.0,3294.9,0.14338667]
[1768637382196,0.91269957,3295.9,3294.9,0.14338667]
[1768637382500,0.00255419,3296.1,3294.9,0.14338667]
[1768637382700,0.91270044,3296.0,3294.9,0.14338667]
[1768637382899,0.91270044,3295.9,3294.9,0.14338667]
[1768637383204,0.00255419,3296.1,3294.9,0.14338667]
[1768637383504,0.91270017,3296.0,3294.9,0.14338667]
[1768637383693,0.91270017,3295.9,3294.9,0.14338667]
[1768637383892,0.00255419,3296.1,3294.9,0.14338667]
[1768637384096,0.91269994,3296.0,3294.9,0.14338667]
[1768637384297,0.91269994,3295.9,3294.9,0.14338667]
[1768637384595,0.00255419,3296.1,3294.9,0.14338667]
[1768637384795,0.9127005,3296.0,3294.9,0.14338667]
[1768637384997,0.9127005,3295.9,3294.9,0.14338667]
[1768637385205,0.00255419,3296.1,3294.9,0.14338667]
[1768637385407,0.91269908,3296.0,3294.9,0.14338667]
[1768637385612,0.91269908,3295.9,3294.9,0.14338667]
[1768637385814,0.00255419,3296.1,3294.9,0.14338667]
[1768637386015,0.91269949,3296.0,3294.9,0.14338667]
[1768637386213,0.91269949,3295.9,3294.9,0.14338667]
[1768637386414,0.00255419,3296.1,3294.9,0.14338667]
[1768637386615,0.91270092,3296.0,3294.9,0.14338667]
[1768637386812,0.91270092,3295.9,3294.9,0.14338667]
[1768637387016,0.00255419,3296.1,3294.9,0.14338667]
[1768637387204,0.9127009,3296.0,3294.9,0.14338667]
[1768637387405,0.9127009,3295.9,3294.9,0.14338667]
[1768637387615,0.00255419,3296.1,3294.9,0.14338667]
[1768637387801,0.91270322,3296.0,3294.9,0.14338667]
[1768637388007,0.91270322,3295.9,3294.9,0.14338667]
[1768637388208,0.00255419,3296.1,3294.9,0.14338667]
[1768637388408,0.91270672,3296.0,3294.9,0.14338667]
[1768637388611,0.91270672,3295.9,3294.9,0.14338667]
[1768637388811,0.00255419,3296.1,3294.9,0.14338667]
[1768637389012,0.91270673,3296.0,3294.9,0.14338667]
[1768637389313,0.91270673,3295.9,3294.9,0.14338667]
[1768637389509,0.00255419,3296.1,3294.9,0.14338667]
[1768637389709,0.91270588,3296.0,3294.9,0.14338667]
[1768637389910,0.91270588,3295.9,3294.9,0.14338667]
[1768637390110,0.00255419,3296.1,3294.9,0.14338667]
[1768637390310,0.91270591,3296.0,3294.9,0.14338667]
[1768637390510,0.91270591,3295.9,3294.9,0.14338667]
[1768637390710,0.00255419,3296.1,3294.9,0.14338667]
[1768637390910,0.91270687,3296.0,3294.9,0.14338667]
[1768637391112,0.91270687,3295.9,3294.9,0.14338667]
[1768637391322,0.00255419,3296.1,3294.9,0.14338667]
[1768637391521,0.91270757,3296.0,3294.9,0.14338667]
[1768637391717,0.91270757,3295.9,3294.9,0.14338667]
[1768637391922,0.00255419,3296.1,3294.9,0.14338667]
[1768637392112,0.91270755,3296.0,3294.9,0.14338667]
[1768637392312,0.91270755,3295.9,3294.9,0.14338667]
[1768637392514,0.91270755,3295.8,3294.9,0.14338667]
[1768637392811,0.00255419,3296.1,3294.9,0.14338667]
[1768637393006,0.91426317,3296.0,3294.9,0.14338667]
[1768637393314,0.91426317,3295.9,3294.9,0.14338667]
[1768637393623,0.00255419,3296.1,3294.9,0.14338667]
[1768637393815,0.91425406,3296.0,3294.9,0.14338667]
[1768637394122,0.91425406,3295.9,3294.9,0.14338667]
[1768637394322,0.00255419,3296.1,3294.9,0.14338667]
[1768637394621,0.91415046,3296.0,3294.9,0.14338667]
[1768637394921,0.00255419,3296.1,3294.9,0.14338667]
[1768637395222,0.91415046,3296.0,3294.9,0.14338667]
[1768637395421,0.00255419,3296.1,3294.9,0.14338667]
[1768637395623,0.91409477,3296.0,3294.9,0.14338667]
[1768637395816,0.00255419,3296.1,3294.9,0.14338667]
[1768637396016,0.91409475,3296.0,3294.9,0.14338667]
[1768637396217,0.00255419,3296.1,3294.9,0.14338667]
[1768637396423,0.91405477,3296.0,3294.9,0.14338667]
[1768637396628,0.00255419,3296.1,3294.9,0.14338667]
[1768637396926,0.91405475,3296.0,3294.9,0.14338667]
[1768637397225,0.00255419,3296.1,3294.9,0.14338667]
[1768637397411,0.91402356,3296.0,3294.9,0.14338667]
[1768637397616,0.00255419,3296.1,3294.9,0.14338667]
[1768637397915,0.91402356,3296.0,3294.9,0.14338667]
[1768637398115,0.00255419,3296.1,3294.9,0.14338667]
[1768637398415,0.91402358,3296.0,3294.9,0.14338667]
[1768637398615,0.00255419,3296.1,3294.9,0.14338667]
[1768637398818,0.91399862,3296.0,3294.9,0.14338667]
[1768637399019,0.00255419,3296.1,3294.9,0.14338667]
[1768637399212,0.91399861,3296.0,3294.9,0.14338667]
[1768637399417,0.00255419,3296.1,3294.9,0.14338667]
[1768637399620,0.91397856,3296.0,3294.9,0.14338667]
[1768637399921,0.00255419,3296.1,3294.9,0.14338667]
[1768637400120,0.91397854,3296.0,3294.9,0.14338667]
[1768637400426,0.00255419,3296.1,3294.9,0.14338667]
[1768637400626,0.91397576,3296.0,3294.9,0.14338667]
[1768637400813,0.00255419,3296.1,3294.9,0.14338667]
[1768637401018,0.91397578,3296.0,3294.9,0.14338667]
[1768637401213,0.00255419,3296.1,3294.9,0.14338667]
[1768637401430,0.91395876,3296.0,3294.9,0.14338667]
[1768637401624,0.00255419,3296.1,3294.9,0.14338667]
[1768637401925,0.91395877,3296.0,3294.9,0.14338667]
[1768637402119,0.00255419,3296.1,3295.0,0.98301449]
[1768637402320,0.00255419,3296.1,3295.1,0.14090649]
[1768637402719,1.59,3296.9,3295.2,0.14090649]
[1768637402922,1.18054805,3296.8,3295.3,0.14090649]
[1768637403227,1.18054805,3296.7,3295.3,0.14090649]
[1768637403422,1.18054805,3296.6,3295.3,0.14090649]
[1768637403624,0.91388728,3296.5,3295.3,0.14090649]
[1768637403829,0.91388728,3296.4,3295.3,0.14090649]
[1768637404028,0.0037058,3296.6,3295.4,1.12392098]
[1768637404029,0.91388728,3296.3,3295.4,1.12392098]
[1768637404234,0.0037058,3296.6,3295.4,0.14090649]
[1768637404528,0.91038642,3296.5,3295.4,0.14090649]
[1768637404718,0.0037058,3296.6,3295.4,0.14090649]
[1768637407233,0.0037058,3296.6,3294.6,0.14090649]
[1768637407234,0.14203964,3296.4,3294.6,0.14090649]
[1768637412831,0.26648765,3296.3,3294.6,0.14090649]
[1768637413031,0.14203964,3296.3,3294.6,0.14090649]
[1768637413332,1.12510653,3296.3,3294.9,0.98306689]
[1768637415137,0.98306689,3295.8,3294.3,0.98306689]
[1768637415342,0.14203964,3295.9,3294.7,0.98306689]
[1768637415542,0.26645129,3295.8,3294.7,0.98306689]
[1768637415742,0.26645129,3295.7,3294.7,0.98306689]
[1768637415939,0.14203964,3295.9,3294.7,0.98306689]
[1768637416241,0.26645745,3295.8,3294.7,0.98306689]
[1768637416440,2.61530887,3295.7,3294.7,0.98306689]
[1768637416642,0.91330887,3295.6,3294.7,0.98306689]
[1768637416844,0.91330887,3295.6,3294.5,0.98306689]
[1768637420539,0.91330887,3295.6,3294.9,0.98306689]
[1768637420739,1.702,3296.0,3294.9,0.98306689]
[1768637420941,0.9124163,3295.9,3294.9,0.98306689]
[1768637421139,0.9124163,3295.8,3294.7,0.98306689]
[1768637421340,0.9124163,3295.7,3294.7,0.98306689]
[1768637421540,0.9124163,3295.6,3294.7,0.98306689]
[1768637421842,1.702,3296.0,3294.7,0.98306689]
[1768637422040,0.9123023,3295.9,3294.7,0.98306689]
[1768637422342,0.9123023,3295.8,3294.7,0.98306689]
[1768637422542,0.9123023,3295.7,3294.7,0.98306689]
[1768637422744,0.9123023,3295.6,3294.7,0.98306689]
[1768637422944,1.702,3296.0,3294.7,0.98306689]
[1768637423244,0.91309395,3295.9,3294.7,0.98306689]
[1768637423446,0.91309395,3295.8,3294.7,0.98306689]
[1768637423646,0.91309395,3295.7,3294.7,0.98306689]
[1768637423846,0.91309395,3295.6,3294.7,0.98306689]
[1768637424050,1.702,3296.0,3294.7,0.98306689]
[1768637424254,0.91297135,3295.9,3294.7,0.98306689]
[1768637424550,0.91297135,3295.8,3294.7,0.98306689]
[1768637424850,0.91297135,3295.7,3294.7,0.98306689]
[1768637425043,1.702,3296.0,3294.7,0.98306689]
[1768637425345,0.91291016,3295.9,3294.7,0.98306689]
[1768637425543,0.91291016,3295.8,3294.7,0.98306689]
[1768637425746,0.91291016,3295.7,3294.7,0.98306689]
[1768637425943,1.702,3296.0,3294.7,0.98306689]
[1768637426144,0.91287195,3295.9,3294.7,0.98306689]
[1768637426352,0.91287195,3295.8,3294.7,0.98306689]
[1768637426643,0.91287195,3295.7,3294.7,0.98306689]
[1768637426844,2.68506689,3296.0,3294.7,0.98306689]
[1768637427044,0.91282344,3295.9,3294.7,0.98306689]
[1768637427244,0.91282344,3295.8,3294.7,0.98306689]
[1768637427546,0.91282344,3295.7,3294.7,0.98306689]
[1768637427752,2.68506689,3296.0,3294.7,0.98306689]
[1768637428055,0.91278557,3295.9,3294.7,0.98306689]
[1768637428246,0.91278557,3295.8,3294.7,0.98306689]
[1768637428446,0.91278557,3295.7,3294.7,0.98306689]
[1768637428647,2.68506689,3296.0,3294.7,0.98306689]
[1768637428946,0.91275247,3295.9,3294.7,0.98306689]
[1768637429147,0.91275247,3295.8,3294.7,0.98306689]
[1768637429349,0.91275247,3295.7,3294.7,0.98306689]
[1768637429550,2.68506689,3296.0,3294.7,0.98306689]
[1768637429749,0.91273713,3295.9,3294.7,0.98306689]
[1768637429948,0.91273713,3295.8,3294.7,0.98306689]
[1768637430247,0.91273713,3295.7,3294.7,0.98306689]
[1768637430448,2.68506689,3296.0,3294.7,0.98306689]
[1768637430648,0.91275411,3295.9,3295.1,0.98306689]
[1768637430848,1.702,3296.2,3295.3,0.98306689]
[1768637431051,0.91267899,3296.1,3295.3,0.98306689]
[1768637431251,1.702,3296.2,3295.3,0.98306689]
[1768637431451,0.91270081,3296.1,3295.3,0.98306689]
[1768637431651,1.702,3296.2,3295.3,0.98306689]
[1768637431855,0.91270082,3296.1,3295.1,0.98306689]
[1768637432057,1.702,3296.2,3295.1,0.98306689]
[1768637432354,0.91273094,3296.1,3295.1,0.98306689]
[1768637432556,1.702,3296.2,3295.1,0.98306689]
[1768637432853,0.91273108,3296.1,3295.1,0.98306689]
[1768637433053,1.703,3296.1,3295.1,0.98306689]
[1768637433255,0.91285186,3296.0,3295.1,0.98306689]
[1768637433454,1.703,3296.1,3295.1,0.98306689]
[1768637433644,0.91285188,3296.0,3295.1,0.98306689]
[1768637433842,1.703,3296.1,3295.1,0.98306689]
[1768637434057,0.91285185,3296.0,3295.1,0.98306689]
[1768637434256,1.703,3296.1,3295.1,0.98306689]
[1768637434458,0.91300234,3296.0,3295.1,0.98306689]
[1768637434650,1.703,3296.1,3295.1,0.98306689]
[1768637434851,0.91300235,3296.0,3295.1,0.98306689]
[1768637435150,1.703,3296.1,3295.1,0.98306689]
[1768637435350,0.91316822,3296.0,3295.1,0.98306689]
[1768637435543,1.703,3296.1,3295.1,0.98306689]
[1768637435749,0.91316821,3296.0,3295.1,0.98306689]
[1768637435948,1.703,3296.1,3295.1,0.98306689]
[1768637436149,0.91316821,3296.0,3295.1,0.98306689]
[1768637436350,1.703,3296.1,3295.1,0.98306689]
[1768637436557,0.91335457,3296.0,3295.1,0.98306689]
[1768637436758,1.703,3296.1,3295.1,0.98306689]
[1768637436948,0.91335458,3296.0,3295.1,0.98306689]
[1768637437150,1.703,3296.1,3295.1,0.98306689]
[1768637437349,0.91353353,3296.0,3295.1,0.98306689]
[1768637437550,1.703,3296.1,3295.1,0.98306689]
[1768637437759,0.9135337,3296.0,3295.1,0.98306689]
[1768637437960,1.703,3296.1,3295.1,0.98306689]
[1768637438260,0.91353368,3296.0,3295.1,0.98306689]
[1768637438452,1.703,3296.1,3295.1,0.98306689]
[1768637438651,0.91360875,3296.0,3295.1,0.98306689]
[1768637438853,2.68606689,3296.1,3294.8,0.14119568]
[1768637439058,0.91361021,3296.0,3294.8,0.14119568]
[1768637439254,0.91361021,3295.9,3294.8,0.14119568]
[1768637439456,2.68606689,3296.1,3294.2,0.14149152]
[1768637439758,0.91369422,3296.0,3294.6,0.98306689]
[1768637439953,1.89676111,3295.9,3294.6,0.98306689]
[1768637440154,0.91386781,3295.8,3294.6,0.98306689]
[1768637440350,0.91386781,3295.7,3294.6,0.98306689]
[1768637440553,0.98306689,3295.9,3294.6,0.98306689]
[1768637440761,0.91387123,3295.8,3294.6,0.98306689]
[1768637440957,0.91387123,3295.7,3294.6,0.98306689]
[1768637441257,0.98306689,3295.9,3294.6,0.98306689]
[1768637441559,0.91398751,3295.8,3294.4,0.98306689]
[1768637441760,0.91398751,3295.7,3294.4,0.98306689]
[1768637441951,0.91398751,3295.6,3294.4,0.98306689]
[1768637442152,0.98306689,3295.9,3294.4,0.98306689]
[1768637442354,0.91412021,3295.8,3294.4,0.98306689]
[1768637442649,0.91412021,3295.7,3294.4,0.98306689]
[1768637442853,0.91412021,3295.6,3294.4,0.98306689]
[1768637443053,0.98306689,3295.9,3294.4,0.98306689]
[1768637443260,0.91421137,3295.8,3294.4,0.98306689]
[1768637443455,0.91421137,3295.7,3294.4,0.98306689]
[1768637443651,0.91421137,3295.6,3294.4,0.98306689]
[1768637443860,0.98306689,3295.9,3294.4,0.98306689]
[1768637444169,0.91421139,3295.8,3294.4,0.98306689]
[1768637444466,0.91421139,3295.7,3294.4,0.98306689]
[1768637444667,0.91421139,3295.6,3294.4,0.98306689]
[1768637444865,0.98306689,3295.9,3294.4,0.98306689]
[1768637445064,0.91431568,3295.8,3294.4,0.98306689]
[1768637445362,0.91431568,3295.7,3294.4,0.98306689]
[1768637445671,0.91431568,3295.6,3294.4,0.98306689]
[1768637445967,0.98306689,3295.9,3294.4,0.98306689]
[1768637446168,0.91431342,3295.8,3294.4,0.98306689]
[1768637446466,0.91431342,3295.7,3294.4,0.98306689]
[1768637446661,0.91431342,3295.6,3294.4,0.98306689]
[1768637446862,0.98306689,3295.9,3294.4,0.98306689]
[1768637447058,0.91434275,3295.8,3294.4,0.98306689]
[1768637447254,0.91434275,3295.7,3294.4,1.12455841]
[1768637447455,0.91434275,3295.6,3294.4,1.12455841]
[1768637447660,0.98306689,3295.9,3294.4,1.12455841]
[1768637447954,0.91437384,3295.8,3294.4,1.12455841]
[1768637448153,0.91437384,3295.7,3294.4,1.12455841]
[1768637448357,0.91437384,3295.6,3294.4,1.12455841]
[1768637448568,0.98306689,3295.9,3294.4,1.12455841]
[1768637448771,0.91440735,3295.8,3294.4,1.12455841]
[1768637448975,0.91440735,3295.7,3294.4,1.12455841]
[1768637449173,0.91440735,3295.6,3294.4,1.12455841]
[1768637449477,0.98306689,3295.9,3294.4,1.12455841]
[1768637449674,0.9144428,3295.8,3294.4,1.12455841]
[1768637449876,0.9144428,3295.7,3294.4,1.12455841]
[1768637450070,0.9144428,3295.6,3294.4,1.18055841]
[1768637450270,0.98306689,3295.9,3294.4,1.18055841]
[1768637450470,0.91448037,3295.8,3294.4,1.18055841]
[1768637450670,0.91448037,3295.7,3294.4,1.18055841]
[1768637450867,0.91448037,3295.6,3294.4,1.18055841]
[1768637451070,0.98306689,3295.9,3294.4,1.18055841]
[1768637451263,0.91449415,3295.8,3294.4,1.18055841]
[1768637451473,0.91449415,3295.7,3294.6,0.98306689]
[1768637451769,0.91449415,3295.6,3294.6,0.98306689]
[1768637451974,0.98306689,3295.9,3294.6,0.98306689]
[1768637452175,0.91449385,3295.8,3294.6,0.98306689]
[1768637452463,0.91449385,3295.7,3294.6,0.98306689]
[1768637452675,0.91449385,3295.6,3294.6,0.98306689]
[1768637452976,0.98306689,3295.9,3294.6,0.98306689]
[1768637453179,0.91414273,3295.8,3294.6,0.98306689]
[1768637453478,0.91414273,3295.7,3294.6,0.98306689]
[1768637453774,0.91414273,3295.6,3294.4,0.19749152]
[1768637453978,0.91414273,3295.5,3294.6,0.98306689]
[1768637454177,0.98306689,3295.9,3294.6,0.98306689]
[1768637454379,0.91417343,3295.8,3294.6,0.98306689]
[1768637454586,0.91417343,3295.7,3294.6,0.98306689]
[1768637454879,0.91417343,3295.6,3294.6,0.98306689]
[1768637455077,0.91417343,3295.5,3294.6,0.98306689]
[1768637455379,0.98306689,3295.9,3294.6,0.98306689]
[1768637455576,0.91418927,3295.8,3294.6,0.98306689]
[1768637455775,0.91418927,3295.7,3294.6,0.98306689]
[1768637455977,0.91418927,3295.6,3294.6,0.98306689]
[1768637456178,0.91418927,3295.5,3294.6,0.98306689]
[1768637456375,0.98306689,3295.9,3294.6,0.98306689]
[1768637456573,0.91420586,3295.8,3294.6,0.98306689]
[1768637456773,0.91420586,3295.7,3294.6,0.98306689]
[1768637457073,0.91420586,3295.6,3294.6,0.98306689]
[1768637457274,0.91420586,3295.5,3294.6,0.98306689]
[1768637457481,0.98306689,3295.9,3294.6,0.98306689]
[1768637457678,0.91422313,3295.8,3294.6,0.98306689]
[1768637457879,0.91422313,3295.7,3294.6,0.98306689]
[1768637458079,0.91422313,3295.6,3294.6,0.98306689]
[1768637458283,0.91422313,3295.5,3294.6,0.98306689]
[1768637458497,0.98306689,3295.9,3294.6,0.98306689]
[1768637458783,0.91424097,3295.8,3294.6,0.98306689]
[1768637459080,0.91424097,3295.7,3294.6,0.98306689]
[1768637459379,0.91424097,3295.6,3294.6,0.98306689]
[1768637459581,0.91424097,3295.5,3294.6,0.98306689]
[1768637459875,0.98306689,3295.9,3294.6,0.98306689]
[1768637460076,0.91425714,3295.8,3294.6,0.98306689]
[1768637460275,0.91425714,3295.7,3294.6,0.98306689]
[1768637460468,0.91425714,3295.6,3294.6,0.98306689]
[1768637460672,0.91426214,3295.5,3294.6,0.98306689]
[1768637460867,3.037,3296.0,3294.6,0.98306689]
[1768637461180,1.18073607,3295.9,3294.6,0.98306689]
[1768637461369,0.9142617,3295.8,3294.6,0.98306689]
[1768637461674,0.9142617,3295.7,3294.6,0.98306689]
[1768637461968,0.9142617,3295.6,3294.6,0.98306689]
[1768637462167,0.9142617,3295.5,3294.6,0.98306689]
[1768637462372,3.037,3296.0,3294.6,0.98306689]
[1768637462672,1.18085392,3295.9,3294.6,0.98306689]
[1768637462868,0.91435178,3295.8,3294.6,0.98306689]
[1768637463079,0.91435178,3295.7,3294.6,0.98306689]
[1768637463282,0.91435178,3295.6,3294.8,0.98306689]
[1768637463481,0.91435178,3295.5,3294.8,0.98306689]
[1768637463682,3.037,3296.0,3294.8,0.98306689]
[1768637463878,1.18306089,3295.9,3294.8,0.98306689]
[1768637464084,1.18306089,3295.8,3294.8,0.98306689]
[1768637464279,0.9144109,3295.7,3294.8,0.98306689]
[1768637464484,0.9144109,3295.6,3295.0,0.98306689]
[1768637464872,0.9144109,3295.5,3295.0,0.98306689]
[1768637465076,1.702,3295.8,3295.0,0.98306689]
[1768637465385,0.91456816,3295.7,3294.8,1.12283106]
[1768637465576,0.91456816,3295.6,3294.8,1.12283106]
[1768637465777,0.91456816,3295.5,3294.8,1.12283106]
[1768637466085,1.702,3295.8,3294.8,1.12283106]
[1768637466284,0.91465866,3295.7,3294.8,1.12283106]
[1768637466477,0.91465866,3295.6,3294.8,1.12283106]
[1768637466672,0.91465866,3295.5,3294.8,1.12283106]
[1768637466878,1.702,3295.8,3294.8,1.12283106]
[1768637467078,0.91467248,3295.7,3294.8,1.12283106]
[1768637467278,0.91467248,3295.6,3294.8,1.12283106]
[1768637467485,0.91467248,3295.5,3294.8,1.12283106]
[1768637467682,1.702,3295.8,3294.8,1.12283106]
[1768637467883,0.91480186,3295.7,3294.8,1.12283106]
[1768637468079,0.91480186,3295.6,3294.8,1.12283106]
[1768637468278,0.91480186,3295.5,3294.8,1.12283106]
[1768637468478,1.702,3295.8,3294.8,1.12283106]
[1768637468678,0.91497452,3295.7,3294.8,1.12283106]
[1768637468886,0.91497452,3295.6,3294.8,1.12283106]
[1768637469088,0.91497452,3295.5,3294.8,1.12283106]
[1768637469388,0.91497452,3295.4,3294.8,1.12283106]
[1768637469582,1.702,3295.8,3294.8,1.12283106]
[1768637469783,1.18418684,3295.7,3294.8,1.12283106]
[1768637469985,0.91524644,3295.6,3294.8,1.12283106]
[1768637470184,0.91524644,3295.5,3294.8,1.12283106]
[1768637470487,0.91524644,3295.4,3294.8,1.12283106]
[1768637470678,1.702,3295.8,3294.8,1.12283106]
[1768637470879,1.18437993,3295.7,3294.8,1.12283106]
[1768637471080,0.91543273,3295.6,3294.8,1.12283106]
[1768637471379,0.91543273,3295.5,3294.8,1.12283106]
[1768637471588,0.91543273,3295.4,3294.8,1.12283106]
[1768637471779,1.702,3295.8,3294.8,1.12283106]
[1768637471980,1.18442878,3295.7,3294.8,1.12283106]
[1768637472181,0.91547041,3295.6,3294.8,1.12283106]
[1768637472481,0.91547041,3295.5,3294.8,1.12283106]
[1768637472682,0.91547041,3295.4,3294.8,1.12283106]
[1768637472881,1.702,3295.8,3294.8,1.12283106]
[1768637473092,1.18442579,3295.7,3294.8,1.12283106]
[1768637473294,0.91546813,3295.6,3294.8,0.13976417]
[1768637473591,0.91546813,3295.5,3294.8,0.13976417]
[1768637473791,0.91546813,3295.4,3294.8,0.13976417]
[1768637473991,1.702,3295.8,3294.8,0.13976417]
[1768637474289,1.18442537,3295.7,3294.8,0.13976417]
[1768637474490,0.91546819,3295.6,3294.8,0.13976417]
[1768637474790,0.91546819,3295.5,3294.8,0.13976417]
[1768637474989,0.91546819,3295.4,3294.8,0.13976417]
[1768637475189,1.702,3295.8,3294.8,0.13976417]
[1768637475390,1.18442595,3295.7,3294.8,0.13976417]
[1768637475589,1.702,3295.8,3294.8,0.13976417]
[1768637475590,0.91546856,3295.6,3294.8,0.13976417]
[1768637475890,0.91546856,3295.5,3294.8,0.13976417]
[1768637476193,0.91546856,3295.4,3294.8,0.13976417]
[1768637476389,1.702,3295.8,3294.8,0.13976417]
[1768637476689,1.18442711,3295.7,3294.8,0.13976417]
[1768637476889,0.91546952,3295.6,3294.8,0.13976417]
[1768637477090,0.91546952,3295.5,3294.8,0.13976417]
[1768637477388,0.91546952,3295.4,3294.8,0.13976417]
[1768637477577,1.702,3295.8,3294.8,0.13976417]
[1768637477777,1.18442842,3295.7,3294.8,0.13976417]
[1768637477983,0.91547054,3295.6,3294.8,0.13976417]
[1768637478180,0.91547054,3295.5,3294.8,0.13976417]
[1768637478386,0.91547054,3295.4,3294.8,0.13976417]
[1768637478590,1.702,3295.7,3294.8,0.13976417]
[1768637478792,0.91547057,3295.6,3294.8,0.13976417]
[1768637478994,0.91547057,3295.5,3294.8,0.13976417]
[1768637479193,0.91547057,3295.4,3294.8,0.13976417]
[1768637479490,1.702,3295.7,3294.8,0.13976417]
[1768637479692,0.91547131,3295.6,3294.8,0.13976417]
[1768637479891,0.91547131,3295.5,3294.8,0.13976417]
[1768637480089,0.91547131,3295.4,3294.8,0.13976417]
[1768637480292,1.702,3295.7,3294.8,0.13976417]
[1768637480491,0.9154725,3295.6,3294.8,0.13976417]
[1768637480681,1.702,3295.7,3294.8,0.13976417]
[1768637480682,0.9154725,3295.5,3294.8,0.13976417]
[1768637480881,1.702,3295.7,3294.8,0.13976417]
[1768637480882,0.9154725,3295.4,3294.8,0.13976417]
[1768637481094,1.702,3295.7,3294.8,0.13976417]
[1768637481287,0.91545177,3295.6,3294.8,0.13976417]
[1768637481488,0.91541721,3295.5,3294.8,0.13976417]
[1768637481691,0.91541721,3295.4,3294.8,0.13976417]
[1768637481991,1.702,3295.7,3294.8,0.13976417]
[1768637482186,0.91541721,3295.6,3294.8,0.13976417]
[1768637482491,0.91541721,3295.5,3294.8,0.13976417]
[1768637482794,1.702,3295.7,3294.8,0.13976417]
[1768637483095,0.91510999,3295.6,3294.8,0.13976417]
[1768637483286,0.91510999,3295.5,3294.4,0.19958879]
[1768637483486,1.702,3295.7,3294.4,0.19958879]
[1768637483687,0.91505214,3295.6,3294.4,0.19958879]
[1768637483897,0.91505214,3295.5,3294.4,0.19958879]
[1768637484090,1.702,3295.7,3294.4,0.19958879]
[1768637484289,0.91508068,3295.6,3294.4,0.19958879]
[1768637484490,0.91508068,3295.5,3294.4,0.19958879]
[1768637484788,1.702,3295.7,3294.4,0.19958879]
[1768637484989,0.91507583,3295.6,3294.4,0.19958879]
[1768637485195,0.91507583,3295.5,3294.4,0.19958879]
[1768637485384,1.702,3295.7,3294.4,0.19958879]
[1768637485587,0.91507191,3295.6,3294.4,0.19958879]
[1768637485796,0.91507191,3295.5,3294.5,0.14358879]
[1768637485995,1.702,3295.9,3294.7,0.98311652]
[1768637486196,1.18397716,3295.8,3294.7,0.98311652]
[1768637486496,0.91506491,3295.7,3294.7,0.14358879]
[1768637486685,0.91506491,3295.6,3294.7,0.14358879]
[1768637486885,1.702,3295.9,3294.7,0.14358879]
[1768637487090,0.91497062,3295.8,3294.7,0.14358879]
[1768637487285,0.91497062,3295.7,3294.7,0.14358879]
[1768637487492,1.702,3296.0,3294.7,0.14358879]
[1768637487998,1.702,3296.0,3294.8,0.14358879]
[1768637488195,0.13979408,3296.6,3294.8,0.14358879]
[1768637488393,1.97074992,3296.5,3294.8,0.14358879]
[1768637488698,0.26874992,3296.4,3294.8,0.14358879]
[1768637488889,0.26874992,3296.3,3294.8,0.14358879]
[1768637489095,1.702,3296.5,3294.8,0.14358879]
[1768637489290,1.97061803,3296.4,3294.8,0.14358879]
[1768637489596,1.702,3296.4,3294.8,0.14358879]
[1768637489798,0.0037058,3296.6,3295.2,0.14358879]
[1768637490111,1.97061075,3296.5,3295.2,0.14358879]
[1768637490294,1.702,3296.5,3295.2,0.14358879]
[1768637491903,0.0037058,3296.6,3295.2,0.14358879]
[1768637492105,1.702,3296.5,3295.2,0.14358879]
[1768637493005,0.0037058,3296.6,3295.2,0.14358879]
[1768637493206,1.702,3296.5,3295.2,0.14358879]
[1768637494604,0.0037058,3296.6,3295.2,0.14358879]
[1768637494806,1.702,3296.5,3295.2,0.14358879]
[1768637495902,0.0037058,3296.6,3295.2,0.14358879]
[1768637496205,1.702,3296.5,3295.2,0.14358879]
[1768637496898,0.0037058,3296.6,3295.2,0.14358879]
[1768637497104,1.702,3296.5,3295.2,0.14358879]
[1768637497407,0.0037058,3296.6,3295.2,0.14358879]
[1768637497609,1.7057058,3296.6,3295.2,0.14358879]
[1768637501910,1.7057058,3296.6,3295.3,0.056]
[1768637505716,1.7057058,3296.6,3295.4,0.056]
[1768637506613,1.7057058,3296.6,3295.2,0.14358879]
[1768637508016,1.84148864,3296.6,3295.2,0.14358879]
[1768637509011,0.13578284,3296.5,3294.8,1.12015959]
[1768637510614,0.90855948,3296.4,3294.8,1.12015959]
[1768637510813,0.13578284,3296.5,3294.8,1.12015959]
[1768637511014,0.90855949,3296.4,3294.8,1.12015959]
[1768637511208,0.13578284,3296.5,3294.8,1.12015959]
[1768637511408,0.90855949,3296.4,3294.8,1.12015959]
[1768637511610,0.13578284,3296.5,3294.9,0.056]
[1768637511813,0.90870103,3296.4,3294.9,0.056]
[1768637512113,0.13578284,3296.5,3294.9,0.056]
[1768637512313,0.13583143,3296.3,3294.9,0.056]
[1768637515117,0.9091571,3296.2,3294.9,0.056]
[1768637515319,0.13583143,3296.3,3294.9,0.056]
[1768637515520,0.90945297,3296.2,3294.9,0.056]
[1768637515719,0.13583143,3296.3,3294.9,0.056]
[1768637515920,0.90945297,3296.2,3294.9,0.056]
[1768637516219,0.13583143,3296.3,3294.9,0.056]
[1768637516416,0.90946142,3296.2,3294.9,0.056]
[1768637516616,0.90946142,3296.1,3294.9,0.056]
[1768637516818,0.13583143,3296.2,3294.9,0.056]